bitfinex-derivatives/quotes_ETHF0:USTF0_20250212
["timestamp","ask_amount","ask_price","bid_price","bid_amount"]
[1739324765173,0.5737,2614.6,2614.5,40.8]
[1739324765571,5.0133861,2614.6,2614.5,40.8]
[1739324766676,1.709,2614.8,2614.5,40.8]
[1739324766871,1.709,2614.8,2614.5,41.9764]
[1739324767075,4.42551412,2614.7,2614.5,41.9764]
[1739324768182,4.42551412,2614.7,2614.5,40.8]
[1739324769082,3.2078,2615.1,2614.6,3.60634489]
[1739324769287,3.2078,2615.1,2614.7,1.57264636]
[1739324769584,3.2078,2615.1,2614.7,1.6683]
[1739324769779,1.709,2615.3,2614.7,1.6683]
[1739324769780,1.709,2615.3,2614.8,41.26521237]
[1739324769980,4.3728,2615.5,2614.9,0.46517813]
[1739324770183,4.3728,2615.5,2614.9,3.14103372]
[1739324770379,4.01020906,2615.4,2615.0,0.46511944]
[1739324770684,4.01020906,2615.4,2615.0,3.2078]
[1739324772383,4.01020906,2615.4,2615.1,0.46490107]
[1739324772691,4.01020906,2615.4,2615.2,1.117]
[1739324773088,23.2468,2616.1,2615.3,3.2078]
[1739324773290,2.3108,2616.0,2615.3,3.771]
[1739324773488,4.3168348,2615.6,2615.3,3.771]
[1739324773690,0.5834,2615.9,2615.3,3.771]
[1739324773986,4.3168348,2615.6,2615.3,3.771]
[1739324774392,0.5834,2615.9,2615.3,3.771]
[1739324774687,4.164475,2615.6,2615.3,3.771]
[1739324774995,0.5834,2615.9,2615.3,3.771]
[1739324775283,4.17339296,2615.6,2615.4,40.8]
[1739324775691,0.5834,2615.9,2615.4,40.8]
[1739324776085,4.17339296,2615.8,2615.4,40.8]
[1739324776488,7.38119296,2615.8,2615.4,40.8]
[1739324776994,7.38119296,2615.8,2615.3,3.771]
[1739324777491,7.38119296,2615.8,2615.3,44.571]
[1739324777994,7.38119296,2615.8,2615.3,0.5632]
[1739324779793,7.38119296,2615.8,2615.2,0.5516]
[1739324781491,4.17339296,2615.8,2615.2,0.5516]
[1739324782891,4.17339296,2615.8,2615.3,3.2078]
[1739324785898,4.17339296,2615.8,2615.5,3.14103372]
[1739324786189,4.17339296,2615.8,2615.6,0.5794]
[1739324786394,4.38527118,2615.9,2615.7,0.5527]
[1739324786595,3.8094,2616.1,2615.7,0.5527]
[1739324786794,4.01283845,2616.0,2615.7,0.5527]
[1739324786987,3.8094,2616.1,2615.7,0.5527]
[1739324787393,4.12773625,2616.0,2615.7,0.5527]
[1739324789491,4.12773625,2616.0,2615.9,3.2078]
[1739324789896,4.12773625,2616.0,2615.7,0.5527]
[1739324791101,1.7983,2616.4,2615.7,0.5527]
[1739324791603,4.39707366,2616.3,2615.8,0.00573998]
[1739324795899,4.39707366,2616.3,2615.9,3.2078]
[1739324796306,4.39707366,2616.3,2616.0,0.5532]
[1739324796505,4.39707366,2616.3,2616.1,40.8]
[1739324799801,1.7983,2616.4,2616.1,40.8]
[1739324805216,1.7983,2616.4,2616.2,0.5646]
[1739324805416,1.7983,2616.4,2616.2,1.1762]
[1739324806317,1.7983,2616.4,2616.1,40.8]
[1739324807216,4.14256434,2616.3,2616.1,40.8]
[1739324807712,4.14256434,2616.3,2616.2,3.2078]
[1739324808010,2.2994,2616.7,2616.2,3.8189]
[1739324808216,2.2994,2616.7,2616.3,0.5993]
[1739324808415,4.32970658,2616.6,2616.4,0.582]
[1739324811516,4.32970658,2616.6,2616.2,3.2078]
[1739324818411,7.53750658,2616.6,2616.1,40.8]
[1739324818612,10.6785403,2616.6,2616.1,40.8]
[1739324820418,3.2078,2616.3,2616.1,40.8]
[1739324820724,0.5924,2616.7,2616.2,3.6739935]
[1739324821016,4.42882632,2616.4,2616.3,3.60722722]
[1739324821222,4.42882632,2616.4,2616.3,4.16182189]
[1739324821422,0.00284886,2616.4,2616.3,4.16182189]
[1739324821921,1.1824,2616.8,2616.3,4.16182189]
[1739324822219,2.287,2617.1,2616.6,3.14103372]
[1739324822413,4.28150687,2616.7,2616.6,3.14103372]
[1739324822610,4.38609267,2617.0,2616.6,44.40682081]
[1739324822816,2.8655,2617.1,2616.7,0.46576261]
[1739324823013,2.8655,2617.1,2616.8,0.46576261]
[1739324823213,4.38609267,2617.0,2616.6,43.94103372]
[1739324823410,4.38609267,2617.0,2616.8,3.14103372]
[1739324823718,4.38609267,2617.0,2616.9,1.62564462]
[1739324824021,6.0421,2617.5,2616.9,1.62560415]
[1739324824316,4.3294365,2617.2,2617.1,6.34883372]
[1739324824521,4.3294365,2617.2,2617.1,6.81443787]
[1739324824714,5.4667,2617.5,2617.1,6.81443787]
[1739324824916,0.6092,2617.7,2617.3,3.14103372]
[1739324825223,4.35115072,2617.6,2617.5,3.14103372]
[1739324825518,3.2078,2617.9,2617.5,3.14103372]
[1739324825731,4.14720307,2617.8,2617.5,3.14103372]
[1739324825918,3.2078,2617.9,2617.7,3.14103372]
[1739324826523,3.2078,2618.2,2617.7,3.14103372]
[1739324826722,0.5919,2618.3,2618.0,3.14103372]
[1739324826918,4.270262,2618.2,2618.1,0.5541]
[1739324827118,4.270262,2618.2,2617.8,6.34883372]
[1739324828024,0.5919,2618.3,2617.8,3.2078]
[1739324828223,4.1418592,2618.2,2617.9,40.8]
[1739324828523,0.5637,2618.4,2617.9,43.94103372]
[1739324828922,4.12045887,2618.2,2617.9,43.94103372]
[1739324829124,4.12045887,2618.3,2617.9,43.94103372]
[1739324829422,0.5637,2618.4,2617.9,43.94103372]
[1739324829825,4.34082485,2618.3,2617.9,43.94103372]
[1739324830721,4.34082485,2618.3,2617.9,40.8]
[1739324830920,4.93202485,2618.3,2617.8,3.2078]
[1739324832716,4.34082485,2618.3,2617.9,3.14103372]
[1739324832921,4.34082485,2618.3,2617.9,3.71243372]
[1739324833322,4.34082485,2618.3,2617.9,6.92023372]
[1739324833525,4.34082485,2618.3,2618.2,6.34883372]
[1739324833727,3.2078,2619.2,2618.2,7.11282372]
[1739324833927,3.2078,2619.2,2618.0,3.14103372]
[1739324833928,0.5893,2619.1,2618.7,3.14103372]
[1739324834119,3.2078,2620.1,2619.0,6.28206744]
[1739324834319,3.2078,2620.7,2620.0,3.14103372]
[1739324834520,3.2078,2623.2,2621.1,3.2078]
[1739324834821,3.8168,2621.7,2621.6,3.2078]
[1739324835029,4.22983596,2621.9,2621.6,43.99441]
[1739324835226,5.0088,2622.7,2621.7,3.14103372]
[1739324835527,3.97343153,2622.6,2622.0,3.2078]
[1739324835923,3.8168,2622.1,2621.5,0.00572803]
[1739324836118,3.8168,2621.6,2621.5,0.00572803]
[1739324836526,7.93335546,2621.6,2621.5,0.00572803]
[1739324837130,17.14115546,2621.6,2620.8,3.2078]
[1739324837324,3.8168,2620.9,2620.4,3.2078]
[1739324837530,3.8168,2620.3,2619.9,3.99543246]
[1739324837826,3.8168,2620.0,2619.8,0.58347925]
[1739324838021,7.0246,2619.9,2619.3,3.99543246]
[1739324838335,3.8168,2619.5,2619.3,3.99543246]
[1739324838629,3.8168,2619.7,2619.3,3.99543246]
[1739324838823,0.5983,2620.1,2619.6,3.99543246]
[1739324839030,4.14295595,2620.0,2619.7,3.2078]
[1739324839230,0.00568821,2620.2,2619.7,3.2078]
[1739324840032,0.00568821,2620.2,2619.8,1.55120491]
[1739324840232,0.00568821,2620.2,2620.1,3.99543246]
[1739324840436,3.82248821,2620.2,2620.1,3.99543246]
[1739324842438,3.82248821,2620.2,2620.1,4.59207143]
[1739324842934,3.82248821,2620.2,2620.1,44.79543246]
[1739324843134,3.82248821,2620.2,2620.1,3.99543246]
[1739324843526,3.82248821,2620.2,2619.8,3.99543246]
[1739324843831,3.82248821,2620.2,2619.9,40.8]
[1739324843832,4.26597822,2620.2,2619.9,40.8]
[1739324844335,3.8168,2620.0,2619.9,40.8]
[1739324844731,8.11651238,2620.0,2619.9,40.8]
[1739324845435,3.8168,2620.0,2619.9,40.8]
[1739324845638,0.00568821,2620.2,2619.9,40.8]
[1739324845829,3.82248821,2620.2,2620.1,3.99543246]
[1739324846837,8.21716957,2620.2,2619.9,40.8]
[1739324847036,3.8168,2620.0,2619.9,40.8]
[1739324847541,8.21148136,2620.0,2619.9,40.8]
[1739324848436,0.00568821,2620.2,2619.9,40.8]
[1739324848637,3.8168,2620.1,2619.9,40.8]
[1739324849338,0.00568821,2620.2,2619.9,40.8]
[1739324849537,0.00568821,2620.2,2620.1,3.99543246]
[1739324850235,3.82248821,2620.2,2620.1,3.99543246]
[1739324850437,3.82248821,2620.2,2620.1,4.59207861]
[1739324850942,0.00568821,2620.2,2620.1,5.54673528]
[1739324852238,3.82248821,2620.2,2620.1,5.54673528]
[1739324852441,3.82248821,2620.2,2620.1,6.0234753]
[1739324852742,3.82248821,2620.2,2620.1,5.54673528]
[1739324852943,0.00568821,2620.2,2620.1,5.54673528]
[1739324853439,3.82248821,2620.2,2620.1,2.02812635]
[1739324853645,3.82248821,2620.2,2620.1,2.02856551]
[1739324853843,3.82248821,2620.2,2620.1,1.55130282]
[1739324854043,8.40333584,2620.2,2619.9,40.8]
[1739324854342,3.8168,2620.0,2619.9,40.8]
[1739324855447,3.8168,2620.0,2619.9,41.27821407]
[1739324855646,3.8168,2620.0,2619.9,41.2782104]
[1739324856145,3.8168,2620.0,2619.9,40.8]
[1739324856544,7.9148828,2620.0,2619.9,40.8]
[1739324857449,11.1226828,2620.0,2619.9,40.8]
[1739324858543,11.1226828,2620.0,2619.3,0.58347925]
[1739324858749,3.8168,2619.4,2619.3,0.58347925]
[1739324859049,3.8168,2619.4,2619.3,41.86297941]
[1739324859248,3.2078,2620.1,2619.3,51.25438656]
[1739324859540,3.8168,2620.0,2619.8,3.99543246]
[1739324859745,3.8168,2620.0,2619.9,1.24678839]
[1739324860444,3.8168,2620.0,2619.9,42.04678839]
[1739324860944,3.8168,2620.0,2619.9,42.63026764]
[1739324861337,3.8168,2620.0,2619.9,42.63170674]
[1739324861544,3.8168,2620.0,2619.9,42.04822749]
[1739324861840,3.8168,2620.0,2619.9,42.04899547]
[1739324862046,0.00568821,2620.2,2619.9,42.04899547]
[1739324862241,0.00568821,2620.2,2620.1,3.99543246]
[1739324862440,0.00568821,2620.2,2620.1,5.24442793]
[1739324863242,0.00568821,2620.2,2620.1,5.83342793]
[1739324863450,0.00568821,2620.2,2620.1,5.24442793]
[1739324863952,3.2078,2620.4,2620.1,5.247766]
[1739324864147,3.2078,2620.4,2620.2,1.25233354]
[1739324864347,3.8168,2620.0,2619.9,40.8]
[1739324864651,3.8168,2620.0,2619.9,2.19677408]
[1739324864852,8.01378192,2620.0,2619.9,2.19677408]
[1739324865150,8.01378192,2620.0,2619.9,42.99677408]
[1739324865547,8.01378192,2620.0,2619.9,1.42579206]
[1739324866047,8.01378192,2620.0,2619.9,1.41837721]
[1739324866645,8.01378192,2620.0,2619.9,2.00670205]
[1739324867550,8.01378192,2620.0,2619.9,1.08950205]
[1739324868052,14.01378192,2620.0,2619.9,1.08950205]
[1739324868250,14.77725192,2620.0,2619.6,40.8]
[1739324868452,7.0246,2619.7,2619.6,40.8]
[1739324868956,11.10348961,2619.7,2619.6,40.8]
[1739324871655,7.0246,2619.7,2619.6,40.8]
[1739324872158,11.12073773,2619.7,2619.6,40.8]
[1739324872753,7.0246,2619.7,2619.6,40.8]
[1739324873563,3.2078,2620.0,2619.6,40.8]
[1739324873854,3.99543246,2621.1,2619.8,3.99543246]
[1739324873855,3.8168,2619.9,2619.8,3.99543246]
[1739324874154,3.2078,2620.4,2619.6,40.8]
[1739324874155,3.8168,2619.8,2619.6,40.8]
[1739324876155,3.2078,2619.9,2619.6,40.8]
[1739324876156,3.8168,2619.7,2619.6,40.8]
[1739324876548,7.94212975,2619.7,2619.6,40.8]
[1739324876749,3.8168,2619.7,2619.6,40.8]
[1739324878663,3.8168,2619.7,2619.6,41.72369734]
[1739324880365,3.8168,2619.7,2619.6,42.77317295]
[1739324880560,5.0138,2619.9,2619.6,42.77317295]
[1739324880864,3.2078,2619.9,2619.7,0.47202379]
[1739324881160,3.2078,2619.9,2619.8,4.46732006]
[1739324881557,3.2078,2619.9,2619.8,5.96846922]
[1739324882058,3.2078,2619.9,2619.8,1.97216735]
[1739324883058,7.0246,2619.9,2619.8,1.97216735]
[1739324883259,11.0127938,2619.9,2619.8,1.97216735]
[1739324883465,0.76358,2619.7,2618.6,3.267]
[1739324883658,7.0246,2619.2,2618.7,1.1346]
[1739324883859,7.0246,2619.2,2619.1,41.27776093]
[1739324884167,7.0246,2619.2,2619.1,41.27777699]
[1739324885452,7.0246,2619.2,2619.1,0.47777699]
[1739324885656,11.39781359,2619.2,2619.1,0.00572803]
[1739324887165,11.39781359,2619.2,2619.1,0.47728787]
[1739324887365,7.58101359,2619.2,2619.1,4.47272033]
[1739324887560,2.9947,2620.1,2619.1,10.47272033]
[1739324887765,3.8168,2620.0,2619.6,40.8]
[1739324887962,3.8168,2620.0,2619.7,1.64255984]
[1739324888160,3.2078,2620.2,2619.7,1.64255984]
[1739324888161,3.2078,2620.2,2619.8,0.47155984]
[1739324888355,3.8168,2620.1,2619.9,0.47103666]
[1739324888563,3.8168,2620.1,2620.0,0.47103666]
[1739324888757,3.8168,2620.1,2620.0,3.6787171]
[1739324889368,0.5882,2620.5,2620.0,3.6787171]
[1739324889569,3.8168,2620.2,2620.1,4.46634956]
[1739324889969,19.995,2620.7,2620.1,4.46634956]
[1739324890266,3.8168,2620.6,2620.4,7.20323246]
[1739324890471,23.8118,2620.7,2620.5,1.04698028]
[1739324890768,23.8118,2620.7,2620.6,0.47058028]
[1739324890965,3.8168,2620.6,2620.5,0.5764]
[1739324891168,3.8168,2620.6,2620.5,1.04647572]
[1739324891470,3.8168,2620.6,2620.5,41.84647572]
[1739324891673,3.8168,2620.6,2620.5,41.27007572]
[1739324891968,8.04894245,2620.6,2620.5,40.8]
[1739324896074,3.82064894,2620.6,2620.5,41.3539]
[1739324896278,3.82064894,2620.6,2620.5,41.9169571]
[1739324896979,3.82064894,2620.6,2620.5,41.3630571]
[1739324897174,8.17097745,2620.6,2620.5,0.5630571]
[1739324897370,8.17097745,2620.6,2620.2,0.5539]
[1739324897580,3.8168,2620.3,2620.2,0.5539]
[1739324897779,3.8168,2620.3,2620.2,1.02292749]
[1739324898174,3.8168,2620.3,2620.2,41.82292749]
[1739324898479,3.8168,2620.3,2620.2,41.82279837]
[1739324898779,3.8168,2620.3,2620.2,42.38536765]
[1739324899175,0.00384894,2620.6,2620.2,42.38536765]
[1739324899377,3.8168,2620.5,2620.2,41.91655087]
[1739324899774,3.8168,2620.5,2620.3,0.56265087]
[1739324899982,3.8168,2620.4,2620.3,0.56265087]
[1739324900179,3.8168,2620.4,2620.2,41.3539]
[1739324900378,3.8168,2620.3,2620.2,41.3539]
[1739324900576,3.8168,2620.3,2620.2,42.38529964]
[1739324901186,3.8168,2620.3,2620.2,41.91643339]
[1739324901388,3.8168,2620.3,2620.2,41.36253339]
[1739324901992,7.88126588,2620.3,2620.2,40.8]
[1739324903688,13.88126588,2620.3,2620.2,40.8]
[1739324903890,17.08906588,2620.3,2619.3,1.1869]
[1739324904093,3.2078,2620.1,2619.1,0.00572803]
[1739324904288,3.2078,2620.0,2619.4,0.56376023]
[1739324904490,3.2078,2619.7,2619.4,0.56376023]
[1739324904795,3.8168,2619.5,2619.4,0.56376023]
[1739324905198,7.37194664,2619.5,2619.1,0.00572803]
[1739324905389,3.55514664,2619.5,2619.4,40.8]
[1739324905692,1.791,2619.7,2619.4,40.8]
[1739324905887,3.8168,2619.5,2619.4,40.8]
[1739324906289,8.21385496,2619.5,2619.4,40.8]
[1739324912891,8.97747496,2619.5,2619.1,0.00572803]
[1739324913096,7.0246,2619.2,2619.1,0.00572803]
[1739324913293,7.0246,2619.2,2619.1,40.80572803]
[1739324913491,11.20724188,2619.2,2619.1,40.80572803]
[1739324913806,11.20724188,2619.2,2619.1,0.00572803]
[1739324919209,11.97095188,2619.2,2619.1,0.00572803]
[1739324920010,11.20724188,2619.2,2619.1,0.00572803]
[1739324920406,11.97095188,2619.2,2619.1,0.00572803]
[1739324920603,11.20724188,2619.2,2619.1,0.00572803]
[1739324923101,11.97095188,2619.2,2619.1,0.00572803]
[1739324923306,11.20724188,2619.2,2619.1,0.00572803]
[1739324923515,11.97095188,2619.2,2619.1,0.00572803]
[1739324923704,11.20724188,2619.2,2619.1,0.00572803]
[1739324925412,11.97095188,2619.2,2619.1,0.00572803]
[1739324925610,15.10118757,2619.2,2619.1,0.00572803]
[1739324925812,14.33747757,2619.2,2619.1,0.00572803]
[1739324926407,15.10118757,2619.2,2619.1,0.00572803]
[1739324926717,14.33747757,2619.2,2619.1,0.00572803]
[1739324927011,21.16637433,2619.2,2619.1,0.00572803]
[1739324927913,15.16637433,2619.2,2619.1,0.00572803]
[1739324928812,21.16637433,2619.2,2619.1,0.00572803]
[1739324930603,22.92137433,2619.2,2619.1,0.00572803]
[1739324931818,22.92137683,2619.2,2619.1,0.00572803]
[1739324932313,29.27537683,2619.2,2619.1,0.00572803]
[1739324932520,22.92137683,2619.2,2619.1,0.00572803]
[1739324933619,23.22272654,2619.2,2619.1,0.00572803]
[1739324935714,14.40266652,2619.2,2619.1,0.00572803]
[1739324936018,16.08447757,2619.2,2619.1,0.00572803]
[1739324936414,14.33747757,2619.2,2619.1,0.00572803]
[1739324936619,7.39044188,2619.2,2619.1,0.00572803]
[1739324936807,1.753,2619.7,2619.1,0.47753887]
[1739324937014,3.8168,2619.5,2619.2,1.59443667]
[1739324937322,4.17551972,2619.4,2619.3,41.27175289]
[1739324937512,3.8168,2619.5,2619.3,41.27175289]
[1739324937717,3.8168,2619.5,2619.3,41.36598378]
[1739324937922,4.41847881,2619.4,2619.3,41.36598378]
[1739324938216,8.23527881,2619.4,2619.1,0.00572803]
[1739324938408,3.8168,2619.2,2619.1,0.00572803]
[1739324938815,8.23527881,2619.2,2619.1,41.27734571]
[1739324939025,8.23527881,2619.2,2619.1,41.84323167]
[1739324939608,3.2078,2619.5,2619.1,41.84323167]
[1739324939811,7.0246,2619.5,2619.2,1.06251768]
[1739324940014,4.15277704,2619.4,2619.3,1.05301768]
[1739324940219,3.23527704,2619.4,2619.3,1.05301768]
[1739324940427,3.23527704,2619.4,2619.3,0.5814]
[1739324940623,3.23527704,2619.4,2619.3,1.05284344]
[1739324940918,3.2078,2619.5,2619.3,10.18307913]
[1739324941119,5.70742181,2651.0,2619.6,3.13023569]
[1739324941120,23.1998,2620.4,2619.6,3.13023569]
[1739324941327,3.8168,2620.2,2619.7,4.27014344]
[1739324941624,4.15964267,2620.1,2619.8,1.0373294]
[1739324941925,3.8168,2620.2,2619.8,0.56588596]
[1739324942117,3.8168,2620.2,2619.9,0.56588596]
[1739324942317,4.36595015,2620.1,2619.9,0.56588596]
[1739324942823,4.36595015,2620.1,2619.7,3.7987]
[1739324943027,4.36595015,2620.1,2619.8,0.47039905]
[1739324943323,4.36595015,2620.1,2619.7,3.7987]
[1739324943825,4.36595015,2620.1,2619.8,0.47011601]
[1739324944025,4.36595015,2620.1,2619.7,3.7987]
[1739324944224,4.36595015,2620.1,2619.8,0.5634011]
[1739324944824,4.36595015,2620.1,2619.7,3.7987]
[1739324945026,3.8168,2619.9,2619.7,3.7987]
[1739324945228,3.8168,2619.8,2619.4,3.2078]
[1739324945534,3.8168,2619.8,2619.1,40.80572803]
[1739324945535,3.2078,2619.7,2619.1,3.21352803]
[1739324945723,3.8168,2619.3,2619.1,3.21352803]
[1739324945924,3.8168,2619.2,2619.1,0.00572803]
[1739324946132,8.22266479,2619.2,2619.1,3.21352803]
[1739324946631,3.8168,2619.2,2619.1,3.77715997]
[1739324947135,3.8168,2619.2,2619.1,3.21352803]
[1739324947629,8.07344235,2619.2,2619.1,3.21352803]
[1739324948731,4.25664235,2619.2,2619.1,3.21352803]
[1739324948925,0.5761,2619.8,2619.1,3.68342552]
[1739324949126,5.5718,2619.7,2619.5,3.2078]
[1739324949326,9.78161465,2619.7,2619.5,3.2078]
[1739324949923,3.8168,2619.6,2619.5,3.2078]
[1739324950323,3.21164894,2620.6,2619.5,13.21007931]
[1739324950528,23.8088,2620.4,2620.0,3.2078]
[1739324951134,3.8168,2620.3,2620.0,3.2078]
[1739324951335,7.96069743,2620.3,2620.1,40.8]
[1739324951531,3.8168,2620.2,2620.1,40.8]
[1739324951931,8.05747861,2620.2,2620.1,40.8]
[1739324952432,19.992,2620.4,2620.1,40.8]
[1739324952628,23.8088,2620.4,2620.1,40.8]
[1739324952929,23.8088,2620.4,2620.3,3.2078]
[1739324955430,0.00384894,2620.6,2620.3,3.2078]
[1739324955634,0.00384894,2620.6,2620.4,4.00227931]
[1739324956233,0.00384894,2620.6,2620.3,3.2078]
[1739324956430,3.8168,2620.5,2620.3,3.2078]
[1739324956638,8.01192532,2620.5,2620.3,3.2078]
[1739324956839,3.8168,2620.4,2620.3,3.2078]
[1739324960540,0.00384894,2620.6,2620.3,3.2078]
[1739324964441,0.00384894,2620.6,2620.4,3.12566317]
[1739324964834,0.00384894,2620.6,2620.5,1.0322682]
[1739324965044,0.6072,2621.1,2620.5,1.0322682]
[1739324965045,0.6072,2621.1,2620.5,7.0322682]
[1739324965240,1.751,2621.5,2621.0,3.2078]
[1739324965536,3.8168,2621.3,2621.0,3.2078]
[1739324966436,3.8168,2621.3,2621.1,40.8]
[1739324967837,1.1452,2621.4,2621.1,40.8]
[1739324968139,4.3795,2621.4,2621.1,40.8]
[1739324970042,3.8168,2621.2,2621.1,40.8]
[1739324970439,7.86093616,2621.2,2621.0,3.2078]
[1739324970643,3.8168,2621.1,2621.0,3.2078]
[1739324970940,3.8168,2621.1,2621.0,44.0078]
[1739324971239,0.5627,2621.4,2621.0,44.0078]
[1739324971443,3.8168,2621.2,2621.0,44.0078]
[1739324971636,3.8168,2621.1,2621.0,3.2078]
[1739324971836,9.36693671,2621.1,2621.0,2.2909]
[1739324972146,4.9988,2621.1,2620.7,3.2078]
[1739324972343,3.8168,2620.8,2620.7,3.2078]
[1739324974149,0.6109,2621.1,2620.7,3.2078]
[1739324974340,1.751,2621.2,2621.0,3.2078]
[1739324974943,3.8168,2621.1,2621.0,3.2078]
[1739324975141,7.93413954,2621.1,2621.0,3.2078]
[1739324977444,7.93413954,2621.1,2620.8,1.0]
[1739324977639,3.8168,2620.9,2620.8,1.0]
[1739324978044,1.751,2621.2,2620.8,4.99836298]
[1739324978245,3.8168,2621.1,2620.8,4.99836298]
[1739324978435,3.8168,2621.1,2620.9,0.4698612]
[1739324978642,3.8168,2621.1,2620.9,0.56374126]
[1739324979044,8.11626222,2621.0,2620.9,0.56374126]
[1739324979448,3.8168,2621.0,2620.9,0.56374126]
[1739324979747,8.11626222,2621.0,2620.9,0.56374126]
[1739324980240,8.11626222,2621.0,2620.9,1.03425352]
[1739324980440,8.11626222,2621.0,2620.9,0.56374126]
[1739324980846,8.72256222,2621.0,2620.9,0.56374126]
[1739324981941,8.72256222,2621.0,2620.8,1.0]
[1739324982141,3.8168,2620.9,2620.8,1.0]
[1739324982342,3.8168,2620.9,2620.8,1.47084503]
[1739324982544,3.8168,2620.9,2620.8,2.03575265]
[1739324983640,1.751,2621.2,2620.8,2.03575265]
[1739324983948,3.8168,2621.1,2621.0,3.2078]
[1739324984139,3.8168,2621.1,2621.0,3.67864503]
[1739324984738,3.8168,2621.1,2621.0,4.24355265]
[1739324985242,1.751,2621.2,2621.0,4.24355265]
[1739324985448,1.751,2621.2,2621.1,0.47047601]
[1739324985948,0.5627,2621.4,2621.1,0.47047601]
[1739324985949,0.5627,2621.4,2621.1,1.03538444]
[1739324986151,3.8168,2621.3,2621.2,0.47047682]
[1739324986344,4.3795,2621.4,2621.2,1.03538444]
[1739324986545,1.749,2621.9,2621.3,3.6782626]
[1739324986848,3.8168,2621.6,2621.4,4.46882558]
[1739324987056,3.8168,2621.6,2621.5,40.8]
[1739324987243,3.2078,2622.1,2621.5,40.8]
[1739324987244,1.7092,2622.2,2621.6,0.76298]
[1739324987438,3.8168,2621.8,2621.5,40.8]
[1739324987643,3.8168,2621.8,2621.7,3.77270762]
[1739324987843,3.8168,2621.8,2621.7,4.24306631]
[1739324988247,1.7092,2622.2,2621.7,4.24306631]
[1739324988448,3.8168,2621.9,2621.7,3.77270762]
[1739324989054,3.8168,2621.9,2621.8,0.56490762]
[1739324990249,3.8168,2621.9,2621.7,3.2078]
[1739324990854,3.8168,2621.9,2621.7,6.33050665]
[1739324991356,3.8168,2621.9,2621.8,0.56390543]
[1739324991952,3.8168,2621.9,2621.7,6.33050665]
[1739324992454,3.8168,2621.9,2621.7,3.2078]
[1739324992654,3.8168,2621.8,2621.7,3.2078]
[1739324993857,3.8168,2621.8,2621.7,3.67728598]
[1739324994356,8.01845491,2621.8,2621.7,3.2078]
[1739324994660,8.01845491,2621.8,2621.7,3.77119845]
[1739324995159,1.6984,2622.2,2621.7,7.36342516]
[1739324995460,1.6984,2622.2,2621.7,6.8939051]
[1739324995461,3.8168,2621.9,2621.7,6.8939051]
[1739324995761,3.8168,2621.9,2621.8,0.46942222]
[1739324996061,3.8168,2621.9,2621.8,1.03282067]
[1739324996654,3.8168,2621.9,2621.8,0.56339845]
[1739324996850,7.92224101,2621.9,2621.8,0.56339845]
[1739324997153,7.92224101,2621.9,2621.7,3.2078]
[1739324997460,3.8168,2621.8,2621.7,3.2078]
[1739324998652,3.4414,2622.2,2621.7,3.77114542]
[1739324998964,3.8168,2621.9,2621.7,6.89385207]
[1739324999260,3.8168,2621.9,2621.8,0.46941895]
[1739324999464,3.8168,2621.9,2621.7,6.33050665]
[1739324999647,3.8168,2621.9,2621.8,1.03268232]
[1739325000257,3.2078,2623.1,2621.8,7.03268232]
[1739325000459,3.41588413,2622.4,2622.3,3.2078]
[1739325000658,3.41588413,2622.5,2622.3,3.67704693]
[1739325000960,3.41588413,2622.6,2622.4,41.26924693]
[1739325001161,0.5868,2622.8,2622.5,0.46924693]
[1739325001348,0.556,2623.0,2622.7,3.2078]
[1739325001551,0.5815,2623.5,2622.8,0.46919246]
[1739325001757,3.41588413,2623.3,2623.1,3.12270665]
[1739325001951,4.14981692,2623.4,2623.1,3.12270665]
[1739325002259,7.56744194,2623.2,2623.1,3.12270665]
[1739325002559,3.41588413,2623.2,2623.1,3.12270665]
[1739325002753,3.75395781,2623.4,2623.1,9.12270665]
[1739325003056,0.16477719,2624.5,2623.7,0.76237]
[1739325003259,0.16477719,2624.5,2624.4,6.33050665]
[1739325003757,0.16477719,2624.5,2624.4,47.99502309]
[1739325004260,10.94880024,2624.5,2624.4,40.8]
[1739325004761,8.33340024,2624.5,2624.4,40.8]
[1739325004965,10.13440024,2624.5,2624.4,40.8]
[1739325005154,10.13440024,2624.5,2624.2,0.0057169]
[1739325005355,3.41588413,2624.3,2624.2,0.0057169]
[1739325005860,7.42968872,2624.3,2624.2,40.8057169]
[1739325006062,10.63748872,2624.3,2624.2,0.0057169]
[1739325006254,16.63748872,2624.3,2623.4,3.2078]
[1739325006457,3.41588413,2623.5,2623.4,3.2078]
[1739325010057,0.00567979,2623.7,2623.4,3.2078]
[1739325010264,0.00567979,2623.7,2623.6,3.98722309]
[1739325011367,0.75717719,2624.5,2623.6,9.98722309]
[1739325011662,4.17306132,2624.5,2624.2,7.19502309]
[1739325011861,0.75717719,2624.5,2624.3,40.8]
[1739325012057,4.24316925,2624.4,2624.3,40.8]
[1739325012258,7.65905338,2624.4,2623.9,3.2078]
[1739325012463,3.41588413,2624.0,2623.9,3.2078]
[1739325012768,3.41588413,2624.0,2623.3,7.19502309]
[1739325012970,3.41588413,2623.5,2623.3,7.19502309]
[1739325013159,3.41588413,2623.5,2623.4,40.8]
[1739325013360,1.2038,2623.9,2623.4,40.8]
[1739325013665,3.41588413,2623.5,2623.4,40.8]
[1739325014267,9.28836752,2623.5,2623.4,40.8]
[1739325014463,9.28836752,2623.5,2623.2,0.0057169]
[1739325014659,3.41588413,2623.3,2623.2,0.0057169]
[1739325015059,7.63971596,2623.3,2623.2,40.8057169]
[1739325015958,3.41588413,2623.3,2623.2,40.8057169]
[1739325016164,1.801,2623.5,2623.2,40.8057169]
[1739325016364,1.2038,2623.9,2623.4,3.98722309]
[1739325016559,3.41588413,2623.6,2623.4,3.98722309]
[1739325017157,3.41588413,2623.5,2623.3,3.2078]
[1739325020877,3.41588413,2623.4,2623.3,3.2078]
[1739325021066,7.46318525,2623.4,2623.3,3.2078]
[1739325021262,3.41588413,2623.4,2623.3,3.2078]
[1739325022078,7.42367056,2623.4,2623.3,3.2078]
[1739325023173,5.0048,2623.8,2623.3,3.2078]
[1739325023369,3.41588413,2623.5,2623.3,3.2078]
[1739325023564,4.34669951,2623.7,2623.3,3.2078]
[1739325023770,3.2078,2624.2,2623.6,3.2078]